[Event "24th European Women Club Cup 2019"]
[Site "Ulcinj"]
[Date "2019.11.16"]
[Round "7.17"]
[White "Len, Irina"]
[Black "Gunina, Valentina"]
[Result "0-1"]
[ECO "A46"]
[WhiteElo "2036"]
[BlackElo "2509"]
[Annotator "ChessBase"]
[PlyCount "84"]
[EventDate "2019.11.10"]
[EventType "team-tourn"]
[EventCountry "MNE"]
[SourceTitle "playchess.com"]
[Source "ChessBase"]
[SourceQuality "1"]
[WhiteTeam "Hertzeliya"]
[BlackTeam "Maribor"]
[TimeControl "40/5400+30:1800+30"]

1. d4 {[%emt 0:00:00]} Nf6 {[%emt 0:00:00]} 2. Nf3 {[%emt 0:00:00]} e6 {[%emt 0:00:00]} 3. e3 {[%emt 0:00:00]} c5 {[%emt 0:00:14]} 4. Bd3 {[%emt 0:00:01]} Nc6 {[%emt 0:00:23]} 5. O-O {[%emt 0:00:10]} b6 {[%emt 0:01:01]} 6. b3 {[%emt 0:00:23]} Bb7 {[%emt 0:00:31]} 7. Nbd2 {[%emt 0:00:13]} Qc7 {[%emt 0:00:59]} 8. a3 {[%emt 0:01:51]} d5 {[%emt 0:14:25]} 9. Bb2 {[%emt 0:00:26]} Be7 {[%emt 0:02:06]} 10. Rc1 {[%emt 0:00:29]} O-O {[%emt 0:02:29]} 11. Qe2 {[%emt 0:01:45]} Rfd8 {[%emt 0:01:55]} 12. Ne5 {[%emt 0:06:45]} Nxe5 {[%emt 0:03:44]} 13. dxe5 {[%emt 0:00:17]} Ne4 {[%emt 0:00:46]} 14. Bxe4 {[%emt 0:13:39]} dxe4 {[%emt 0:00:13]} 15. Rfd1 {[%emt 0:00:02]} Rd5 {[%emt 0:01:59]} 16. Qg4 {[%emt 0:05:43]} Rad8 {[%emt 0:01:43]} 17. Nc4 {[%emt 0:00:27]} g6 {[%emt 0:10:27]} 18. Re1 {[%emt 0:06:55]} R8d7 {[%emt 0:19:37]} 19. a4 {[%emt 0:01:54]} Qd8 {[%emt 0:03:50]} 20. h3 {[%emt 0:11:16]} Bf8 {[%emt 0:04:13]} 21. Bc3 {[%emt 0:10:22]} h5 {[%emt 0:02:05]} 22. Qf4 {[%emt 0:14:41]} Ba8 {[%emt 0:06:55]} 23. g4 {[%emt 0:01:02]} g5 {[%emt 0:03:42]} 24. Qg3 {[%emt 0:00:08]} h4 {[%emt 0:00:27]} 25. Qg2 {[%emt 0:00:05]} Bb7 {[%emt 0:02:48]} 26. Kh2 {[%emt 0:01:06]} Bg7 {[%emt 0:00:22]} 27. Kg1 {[%emt 0:01:06]} Rd1 {[%emt 0:00:40]} 28. Rcxd1 {[%emt 0:01:57]} Rxd1 {[%emt 0:00:04]} 29. Qf1 {[%emt 0:00:09]} Rxe1 {[%emt 0:01:59]} 30. Qxe1 {[%emt 0:00:02]} Qd5 {[%emt 0:00:11]} 31. Qa1 {[%emt 0:06:00]} Ba6 {[%emt 0:01:41]} 32. Nd2 {[%emt 0:02:17]} Bf8 {[%emt 0:00:08]} 33. Qe1 {[%emt 0:00:21]} Be7 {[%emt 0:00:12]} 34. f3 {[%emt 0:01:59]} exf3 {[%emt 0:01:18]} 35. e4 {[%emt 0:00:08]} Qc6 {[%emt 0:00:55]} 36. Nxf3 {[%emt 0:01:54]} c4 {[%emt 0:00:01]} 37. b4 {[%emt 0:01:26]} Bb7 {[%emt 0:01:25]} 38. Nd2 {[%emt 0:02:06]} Qxa4 {[%emt 0:00:19]} 39. Qb1 {[%emt 0:00:22]} Qa3 {[%emt 0:00:56]} 40. Bd4 {[%emt 0:00:00]} Qg3+ {[%emt 0:00:00]} 41. Kf1 {[%emt 0:03:09]} Qxh3+ {[%emt 0:00:13]} 42. Ke2 {[%emt 0:01:13]} Qxg4+ {[%emt 0:00:07]} 0-1

[Event "24th European Women Club Cup 2019"]
[Site "Ulcinj"]
[Date "2019.11.16"]
[Round "7.18"]
[White "Caglar, Sila"]
[Black "Haitovich, Avital"]
[Result "1-0"]
[ECO "B76"]
[WhiteElo "2242"]
[BlackElo "1998"]
[Annotator "NA"]
[PlyCount "99"]
[EventDate "2019.11.10"]
[EventType "team-tourn"]
[EventCountry "MNE"]
[SourceTitle "playchess.com"]
[Source "ChessBase"]
[SourceQuality "1"]
[WhiteTeam "Maribor"]
[BlackTeam "Hertzeliya"]
[TimeControl "40/5400+30:1800+30"]

1. e4 {[%emt 0:00:00]} c5 {[%emt 0:00:00]} 2. Nf3 {[%emt 0:00:00]} d6 {[%emt 0:00:00]} 3. d4 {[%emt 0:00:00]} cxd4 {[%emt 0:00:00]} 4. Nxd4 {[%emt 0:00:00]} Nf6 {[%emt 0:00:05]} 5. Nc3 {[%emt 0:00:00]} g6 {[%emt 0:00:10]} 6. Be3 {[%emt 0:00:00]} Bg7 {[%emt 0:00:07]} 7. f3 {[%emt 0:00:00]} O-O {[%emt 0:00:10]} 8. Qd2 {[%emt 0:00:00]} Nc6 {[%emt 0:00:09]} 9. g4 {[%emt 0:00:03]} Nxd4 {[%emt 0:04:59]} 10. Bxd4 {[%emt 0:00:02]} Be6 {[%emt 0:03:26]} 11. h4 {[%emt 0:00:17]} Qa5 {[%emt 0:02:27]} 12. h5 {[%emt 0:01:22]} a6 {[%emt 0:05:32]} 13. a3 {[%emt 0:06:31]} Rac8 {[%emt 0:02:06]} 14. Bd3 {[%emt 0:09:55]} b5 {[%emt 0:12:42]} 15. Ne2 {[%emt 0:23:00]} Qxd2+ {[%emt 0:07:00]} 16. Kxd2 {[%emt 0:00:42]} d5 {[%emt 0:09:04]} 17. h6 {[%emt 0:08:39]} Bh8 {[%emt 0:01:22]} 18. e5 {[%emt 0:01:43]} Nd7 {[%emt 0:03:05]} 19. f4 {[%emt 0:00:10]} Bxg4 {[%emt 0:03:04]} 20. Nc3 {[%emt 0:00:29]} Bf3 {[%emt 0:10:56]} 21. Rh3 {[%emt 0:00:29]} Be4 {[%emt 0:01:03]} 22. Bxe4 {[%emt 0:06:12]} dxe4 {[%emt 0:00:07]} 23. Nxe4 {[%emt 0:00:07]} Rc4 {[%emt 0:07:14]} 24. Rd3 {[%emt 0:01:14]} Rfc8 {[%emt 0:02:29]} 25. Rd1 {[%emt 0:07:04]} Nf8 {[%emt 0:14:59]} 26. c3 {[%emt 0:02:52]} Ne6 {[%emt 0:00:57]} 27. Ke3 {[%emt 0:00:38]} f6 {[%emt 0:05:08]} 28. exf6 {[%emt 0:07:33]} Nxd4 {[%emt 0:01:19]} 29. Rxd4 {[%emt 0:00:24]} Rxd4 {[%emt 0:00:43]} 30. Rxd4 {[%emt 0:00:07]} exf6 {[%emt 0:00:24]} 31. Rd6 {[%emt 0:01:15]} f5 {[%emt 0:00:44]} 32. Ng5 {[%emt 0:00:13]} a5 {[%emt 0:00:49]} 33. Rb6 {[%emt 0:00:31]} b4 {[%emt 0:01:47]} 34. axb4 {[%emt 0:00:06]} axb4 {[%emt 0:00:25]} 35. Rxb4 {[%emt 0:00:04]} Re8+ {[%emt 0:00:45]} 36. Kf3 {[%emt 0:00:20]} Bf6 {[%emt 0:00:19]} 37. Rb7 {[%emt 0:00:08]} Bxg5 {[%emt 0:00:42]} 38. fxg5 {[%emt 0:00:02]} Rc8 {[%emt 0:00:18]} 39. Ke3 {[%emt 0:02:42]} Re8+ {[%emt 0:00:38]} 40. Kd4 {[%emt 0:00:00]} f4 {[%emt 0:00:00]} 41. Rg7+ {[%emt 0:01:22]} Kf8 {[%emt 0:04:42]} 42. Rxh7 {[%emt 0:00:04]} f3 {[%emt 0:00:17]} 43. Ra7 {[%emt 0:02:55]} Kg8 {[%emt 0:05:33]} 44. Ra1 {[%emt 0:00:38]} Re2 {[%emt 0:01:22]} 45. Rf1 {[%emt 0:02:13]} Rxb2 {[%emt 0:02:26]} 46. Rxf3 {[%emt 0:00:16]} Rg2 {[%emt 0:00:20]} 47. c4 {[%emt 0:00:30]} Rxg5 {[%emt 0:00:10]} 48. c5 {[%emt 0:00:03]} Rg4+ {[%emt 0:01:51]} 49. Kd5 {[%emt 0:00:01]} Rg1 {[%emt 0:02:56]} 50. Rc3 {[%emt 0:00:33]} 1-0

[Event "24th European Women Club Cup 2019"]
[Site "Ulcinj"]
[Date "2019.11.16"]
[Round "7.19"]
[White "Yakovleva, Tatiana"]
[Black "Vidic, Teja"]
[Result "1/2-1/2"]
[ECO "D10"]
[WhiteElo "1942"]
[BlackElo "2189"]
[Annotator "NA"]
[PlyCount "91"]
[EventDate "2019.11.10"]
[EventType "team-tourn"]
[EventCountry "MNE"]
[SourceTitle "playchess.com"]
[Source "ChessBase"]
[SourceQuality "1"]
[WhiteTeam "Hertzeliya"]
[BlackTeam "Maribor"]
[TimeControl "40/5400+30:1800+30"]

1. d4 {[%emt 0:00:00]} d5 {[%emt 0:00:00]} 2. c4 {[%emt 0:00:00]} c6 {[%emt 0:00:00]} 3. cxd5 {[%emt 0:01:46]} cxd5 {[%emt 0:00:00]} 4. Nc3 {[%emt 0:01:06]} Nf6 {[%emt 0:00:20]} 5. Nf3 {[%emt 0:00:29]} Nc6 {[%emt 0:00:08]} 6. Ne5 {[%emt 0:03:09]} e6 {[%emt 0:04:50]} 7. Bg5 {[%emt 0:10:44]} Be7 {[%emt 0:01:08]} 8. Qa4 {[%emt 0:07:53]} O-O {[%emt 0:01:47]} 9. Nxc6 {[%emt 0:10:51]} bxc6 {[%emt 0:00:07]} 10. e3 {[%emt 0:02:27]} Rb8 {[%emt 0:02:54]} 11. Qc2 {[%emt 0:14:37]} Qb6 {[%emt 0:07:54]} 12. Rb1 {[%emt 0:01:54]} c5 {[%emt 0:03:52]} 13. Bf4 {[%emt 0:03:39]} Rb7 {[%emt 0:03:41]} 14. dxc5 {[%emt 0:05:38]} Qxc5 {[%emt 0:00:36]} 15. Be5 {[%emt 0:03:44]} Nd7 {[%emt 0:03:50]} 16. Bd4 {[%emt 0:04:02]} Qa5 {[%emt 0:00:26]} 17. Qa4 {[%emt 0:01:04]} Qd8 {[%emt 0:13:08]} 18. a3 {[%emt 0:08:21]} Nb6 {[%emt 0:05:35]} 19. Qc2 {[%emt 0:01:19]} Nd7 {[%emt 0:07:36]} 20. f4 {[%emt 0:03:32]} f6 {[%emt 0:02:57]} 21. Ba6 {[%emt 0:05:42]} Rc7 {[%emt 0:01:01]} 22. Bxc8 {[%emt 0:00:16]} Qxc8 {[%emt 0:00:11]} 23. Qd3 {[%emt 0:01:49]} Nc5 {[%emt 0:06:33]} 24. Bxc5 {[%emt 0:00:23]} Bxc5 {[%emt 0:00:04]} 25. O-O {[%emt 0:03:31]} Rd8 {[%emt 0:00:04]} 26. Nb5 {[%emt 0:00:46]} Qa6 {[%emt 0:03:09]} 27. Rfd1 {[%emt 0:00:33]} Rb7 {[%emt 0:01:00]} 28. Nd4 {[%emt 0:00:44]} Qxd3 {[%emt 0:01:05]} 29. Rxd3 {[%emt 0:00:01]} Bxd4 {[%emt 0:06:01]} 30. exd4 {[%emt 0:00:01]} Rc8 {[%emt 0:00:29]} 31. Rd2 {[%emt 0:02:27]} h5 {[%emt 0:03:04]} 32. Re1 {[%emt 0:00:58]} Kf7 {[%emt 0:00:24]} 33. Kf2 {[%emt 0:00:39]} Rc6 {[%emt 0:03:38]} 34. Re3 {[%emt 0:00:59]} Kg6 {[%emt 0:02:59]} 35. b3 {[%emt 0:00:19]} Kf5 {[%emt 0:01:05]} 36. g3 {[%emt 0:00:26]} Rbc7 {[%emt 0:00:40]} 37. Rde2 {[%emt 0:00:07]} a5 {[%emt 0:03:24]} 38. h3 {[%emt 0:00:03]} Rc3 {[%emt 0:01:59]} 39. Kf3 {[%emt 0:00:18]} g5 {[%emt 0:03:44]} 40. g4+ {[%emt 0:00:00]} hxg4+ {[%emt 0:00:00]} 41. hxg4+ {[%emt 0:02:05]} Kg6 {[%emt 0:00:46]} 42. Rxc3 {[%emt 0:00:52]} Rxc3+ {[%emt 0:00:05]} 43. Re3 {[%emt 0:00:08]} Rc6 {[%emt 0:00:37]} 44. Kg3 {[%emt 0:00:41]} gxf4+ {[%emt 0:01:33]} 45. Kxf4 {[%emt 0:00:39]} Kf7 {[%emt 0:00:22]} 46. g5 {[%emt 0:03:17]} 1/2-1/2

[Event "24th European Women Club Cup 2019"]
[Site "Ulcinj"]
[Date "2019.11.16"]
[Round "7.20"]
[White "Mar, Karmen"]
[Black "Lian, Marina"]
[Result "1-0"]
[ECO "C09"]
[WhiteElo "2041"]
[BlackElo "1855"]
[Annotator "NA"]
[PlyCount "93"]
[EventDate "2019.11.10"]
[EventType "team-tourn"]
[EventCountry "MNE"]
[SourceTitle "playchess.com"]
[Source "ChessBase"]
[SourceQuality "1"]
[WhiteTeam "Maribor"]
[BlackTeam "Hertzeliya"]
[TimeControl "40/5400+30:1800+30"]

1. e4 {[%emt 0:00:00]} e6 {[%emt 0:00:00]} 2. d4 {[%emt 0:00:00]} d5 {[%emt 0:00:00]} 3. Nd2 {[%emt 0:00:14]} c5 {[%emt 0:00:00]} 4. exd5 {[%emt 0:00:26]} exd5 {[%emt 0:00:00]} 5. Ngf3 {[%emt 0:00:48]} Nc6 {[%emt 0:00:03]} 6. Bb5 {[%emt 0:00:36]} Bd6 {[%emt 0:00:13]} 7. dxc5 {[%emt 0:00:23]} Bxc5 {[%emt 0:00:03]} 8. O-O {[%emt 0:00:46]} Nge7 {[%emt 0:00:07]} 9. Nb3 {[%emt 0:00:37]} Bd6 {[%emt 0:00:29]} 10. Re1 {[%emt 0:00:37]} O-O {[%emt 0:00:07]} 11. Bd3 {[%emt 0:00:26]} Ng6 {[%emt 0:05:08]} 12. h3 {[%emt 0:05:01]} Bc7 {[%emt 0:05:05]} 13. Be3 {[%emt 0:23:00]} Nce5 {[%emt 0:04:30]} 14. Nxe5 {[%emt 0:08:11]} Nxe5 {[%emt 0:03:59]} 15. Bf4 {[%emt 0:12:36]} Nxd3 {[%emt 0:20:05]} 16. Bxc7 {[%emt 0:00:32]} Qxc7 {[%emt 0:00:02]} 17. Qxd3 {[%emt 0:00:30]} Rd8 {[%emt 0:02:37]} 18. Rad1 {[%emt 0:05:58]} g6 {[%emt 0:02:46]} 19. Nd4 {[%emt 0:08:56]} Bd7 {[%emt 0:18:00]} 20. Qf3 {[%emt 0:05:45]} Qc5 {[%emt 0:06:26]} 21. Re3 {[%emt 0:09:02]} Re8 {[%emt 0:02:08]} 22. Rc3 {[%emt 0:01:22]} Qd6 {[%emt 0:04:23]} 23. Rb3 {[%emt 0:01:08]} Rab8 {[%emt 0:06:24]} 24. Ra3 {[%emt 0:01:58]} a6 {[%emt 0:00:45]} 25. Rad3 {[%emt 0:07:25]} Qc5 {[%emt 0:01:44]} 26. Qf4 {[%emt 0:02:13]} Rbc8 {[%emt 0:01:23]} 27. Rf3 {[%emt 0:01:48]} Qf8 {[%emt 0:05:24]} 28. Qg5 {[%emt 0:00:41]} Qd6 {[%emt 0:05:12]} 29. c3 Re5 {[%emt 0:01:28]} 30. Qf4 {[%emt 0:03:02]} Qe7 {[%emt 0:00:03]} 31. Kh2 {[%emt 0:00:28]} Re8 {[%emt 0:01:18]} 32. Nc2 {[%emt 0:00:43]} Re2 {[%emt 0:02:47]} 33. Nb4 {[%emt 0:00:37]} Be6 {[%emt 0:01:45]} 34. Re3 {[%emt 0:00:25]} Rxe3 {[%emt 0:00:18]} 35. Qxe3 {[%emt 0:00:15]} Qd7 {[%emt 0:01:05]} 36. Qd4 {[%emt 0:00:47]} Rd8 {[%emt 0:00:27]} 37. Kg1 {[%emt 0:00:35]} a5 {[%emt 0:00:21]} 38. Nd3 {[%emt 0:00:21]} Qb5 {[%emt 0:00:52]} 39. b3 {[%emt 0:00:42]} Rc8 {[%emt 0:01:08]} 40. Nf4 {[%emt 0:00:00]} Qc5 {[%emt 0:00:00]} 41. Nxe6 {[%emt 0:06:01]} fxe6 {[%emt 0:00:34]} 42. Qf6 {[%emt 0:02:07]} Re8 {[%emt 0:08:36]} 43. Rd3 {[%emt 0:07:23]} Qe7 {[%emt 0:02:26]} 44. Qe5 {[%emt 0:02:34]} Qg7 {[%emt 0:03:38]} 45. Rxd5 {[%emt 0:02:40]} Qxe5 {[%emt 0:05:19]} 46. Rxe5 {[%emt 0:00:04]} Kf7 {[%emt 0:00:09]} 47. Rxa5 {[%emt 0:00:32]} 1-0

[Event "24th European Women Club Cup 2019"]
[Site "Ulcinj"]
[Date "2019.11.16"]
[Round "7.21"]
[White "Milovic, Aleksandra"]
[Black "Shuvalova, Polina"]
[Result "0-1"]
[ECO "A00"]
[WhiteElo "2183"]
[BlackElo "2434"]
[Annotator "NA"]
[PlyCount "84"]
[EventDate "2019.11.10"]
[EventType "team-tourn"]
[EventCountry "MNE"]
[SourceTitle "playchess.com"]
[Source "ChessBase"]
[SourceQuality "1"]
[WhiteTeam "MNE Woman Chess"]
[BlackTeam "Novy Bor"]
[TimeControl "40/5400+30:1800+30"]

1. Nc3 {[%emt 0:00:00]} d5 {[%emt 0:00:00]} 2. Nf3 {[%emt 0:00:06]} Nf6 {[%emt 0:00:02]} 3. e3 {[%emt 0:00:16]} g6 {[%emt 0:00:58]} 4. g3 {[%emt 0:04:10]} Bg7 {[%emt 0:00:28]} 5. Bg2 {[%emt 0:00:06]} O-O {[%emt 0:00:42]} 6. d3 {[%emt 0:01:01]} c5 {[%emt 0:00:58]} 7. O-O {[%emt 0:00:32]} Nc6 {[%emt 0:00:37]} 8. Re1 {[%emt 0:05:12]} h6 {[%emt 0:02:15]} 9. h3 {[%emt 0:06:04]} e5 {[%emt 0:02:01]} 10. e4 {[%emt 0:03:09]} Be6 {[%emt 0:00:16]} 11. Kh2 {[%emt 0:05:49]} Rc8 {[%emt 0:05:59]} 12. Ng1 {[%emt 0:10:42]} d4 {[%emt 0:04:43]} 13. Nce2 {[%emt 0:03:20]} c4 {[%emt 0:01:12]} 14. dxc4 {[%emt 0:08:23]} Bxc4 {[%emt 0:01:08]} 15. f4 {[%emt 0:01:33]} Re8 {[%emt 0:10:50]} 16. fxe5 {[%emt 0:16:51]} Rxe5 {[%emt 0:00:08]} 17. Nf4 {[%emt 0:05:08]} Qe8 {[%emt 0:14:40]} 18. Nd3 {[%emt 0:01:49]} Re7 {[%emt 0:00:33]} 19. b3 {[%emt 0:01:35]} Bxd3 {[%emt 0:03:57]} 20. cxd3 {[%emt 0:00:21]} Nb4 {[%emt 0:10:22]} 21. Ba3 {[%emt 0:01:34]} a5 {[%emt 0:00:21]} 22. Bxb4 {[%emt 0:10:07]} axb4 {[%emt 0:00:03]} 23. a3 {[%emt 0:00:56]} bxa3 {[%emt 0:00:49]} 24. Re2 {[%emt 0:04:41]} h5 {[%emt 0:03:22]} 25. Rxa3 {[%emt 0:02:21]} h4 {[%emt 0:00:23]} 26. g4 {[%emt 0:01:31]} Bh6 {[%emt 0:06:24]} 27. Rc2 {[%emt 0:00:39]} Rec7 {[%emt 0:01:37]} 28. Raa2 {[%emt 0:00:19]} Qe5+ {[%emt 0:01:33]} 29. Kh1 {[%emt 0:00:06]} Qg3 {[%emt 0:00:32]} 30. Rxc7 {[%emt 0:02:09]} Rxc7 {[%emt 0:00:09]} 31. Ne2 {[%emt 0:01:50]} Qe3 {[%emt 0:04:03]} 32. Qf1 {[%emt 0:00:25]} Nd7 {[%emt 0:04:02]} 33. Qf3 {[%emt 0:00:04]} Qxf3 {[%emt 0:01:46]} 34. Bxf3 {[%emt 0:00:04]} Ne5 {[%emt 0:00:10]} 35. Kg2 {[%emt 0:00:33]} Be3 {[%emt 0:00:18]} 36. g5 {[%emt 0:03:20]} Nxd3 {[%emt 0:00:29]} 37. Bg4 {[%emt 0:00:24]} Kg7 {[%emt 0:01:59]} 38. Ng1 {[%emt 0:00:55]} Rc1 {[%emt 0:01:26]} 39. Ne2 {[%emt 0:00:36]} Rb1 {[%emt 0:00:43]} 40. b4 {[%emt 0:00:00]} Rxb4 {[%emt 0:00:00]} 41. Ra1 {[%emt 0:02:35]} Rb2 {[%emt 0:02:29]} 42. Kf1 {[%emt 0:00:07]} Ne5 {[%emt 0:00:51]} 0-1

[Event "24th European Women Club Cup 2019"]
[Site "Ulcinj"]
[Date "2019.11.16"]
[Round "7.22"]
[White "Bulmaga, Irina"]
[Black "Koljevic, Nikolina"]
[Result "1-0"]
[ECO "A46"]
[WhiteElo "2435"]
[BlackElo "1902"]
[Annotator "NA"]
[PlyCount "85"]
[EventDate "2019.11.10"]
[EventType "team-tourn"]
[EventCountry "MNE"]
[SourceTitle "playchess.com"]
[Source "ChessBase"]
[SourceQuality "1"]
[WhiteTeam "Novy Bor"]
[BlackTeam "MNE Woman Chess"]
[TimeControl "40/5400+30:1800+30"]

1. d4 {[%emt 0:00:00]} Nf6 {[%emt 0:00:00]} 2. Nf3 {[%emt 0:00:00]} e6 {[%emt 0:00:00]} 3. e3 {[%emt 0:00:00]} b6 {[%emt 0:00:00]} 4. Bd3 {[%emt 0:00:01]} Bb7 {[%emt 0:00:00]} 5. O-O {[%emt 0:00:30]} d6 {[%emt 0:00:11]} 6. c4 {[%emt 0:00:54]} Nbd7 {[%emt 0:00:14]} 7. Nc3 {[%emt 0:01:03]} Be7 {[%emt 0:00:33]} 8. e4 {[%emt 0:00:48]} e5 {[%emt 0:00:09]} 9. d5 {[%emt 0:01:33]} h6 {[%emt 0:01:30]} 10. Rb1 {[%emt 0:01:28]} a5 $16 {[%emt 0:01:17]} 11. b3 {[%emt 0:00:38]} Nc5 {[%emt 0:01:23]} 12. Bc2 {[%emt 0:00:11]} O-O {[%emt 0:05:57]} 13. a3 {[%emt 0:02:45]} Nh7 {[%emt 0:04:45]} 14. b4 {[%emt 0:01:15]} Nd7 {[%emt 0:00:47]} 15. g3 {[%emt 0:03:19]} Ba6 {[%emt 0:04:01]} 16. Qe2 {[%emt 0:02:10]} Re8 {[%emt 0:04:41]} 17. Ne1 {[%emt 0:03:50]} Ndf8 {[%emt 0:06:25]} 18. Ba4 {[%emt 0:01:05]} Nd7 {[%emt 0:00:21]} 19. Bc6 {[%emt 0:00:42]} axb4 {[%emt 0:02:12]} 20. Bxa8 {[%emt 0:00:57]} bxc3 {[%emt 0:00:33]} 21. Bc6 {[%emt 0:00:06]} Rf8 {[%emt 0:00:35]} 22. Bb5 {[%emt 0:00:30]} Bc8 {[%emt 0:00:40]} 23. Ba4 {[%emt 0:01:39]} Nc5 {[%emt 0:04:12]} 24. Bc2 {[%emt 0:00:08]} Bh3 {[%emt 0:03:32]} 25. Ng2 {[%emt 0:00:07]} Qc8 {[%emt 0:03:31]} 26. Be3 {[%emt 0:02:24]} Ng5 {[%emt 0:04:32]} 27. f3 {[%emt 0:03:55]} f5 {[%emt 0:02:03]} 28. exf5 {[%emt 0:08:01]} Bxf5 {[%emt 0:00:31]} 29. Bxc5 {[%emt 0:00:25]} bxc5 {[%emt 0:01:24]} 30. Be4 {[%emt 0:00:50]} Nh3+ {[%emt 0:10:45]} 31. Kh1 {[%emt 0:00:09]} h5 {[%emt 0:00:10]} 32. Ne3 {[%emt 0:04:49]} Bd7 {[%emt 0:01:41]} 33. Bc2 {[%emt 0:06:36]} Bg5 {[%emt 0:06:32]} 34. f4 {[%emt 0:03:03]} exf4 {[%emt 0:01:46]} 35. Qxh5 {[%emt 0:00:29]} Bh6 {[%emt 0:00:46]} 36. Qg6 {[%emt 0:05:18]} Rf6 {[%emt 0:02:33]} 37. Qh7+ {[%emt 0:00:56]} Kf7 {[%emt 0:03:09]} 38. gxf4 {[%emt 0:00:15]} Nxf4 {[%emt 0:04:00]} 39. Ng2 {[%emt 0:06:46]} Bh3 {[%emt 0:07:48]} 40. Nxf4 {[%emt 0:00:00]} Bxf4 {[%emt 0:00:00]} 41. Qh5+ {[%emt 0:04:33]} Kg8 {[%emt 0:04:32]} 42. Rbe1 {[%emt 0:06:41]} Bd7 {[%emt 0:03:48]} 43. Re7 {[%emt 0:02:03]} 1-0

[Event "24th European Women Club Cup 2019"]
[Site "Ulcinj"]
[Date "2019.11.16"]
[Round "7.23"]
[White "Rakic, Tijana"]
[Black "Hoang, Thanh Trang"]
[Result "0-1"]
[ECO "C01"]
[WhiteElo "1680"]
[BlackElo "2414"]
[Annotator "NA"]
[PlyCount "62"]
[EventDate "2019.11.10"]
[EventType "team-tourn"]
[EventCountry "MNE"]
[SourceTitle "playchess.com"]
[Source "ChessBase"]
[SourceQuality "1"]
[WhiteTeam "MNE Woman Chess"]
[BlackTeam "Novy Bor"]
[TimeControl "40/5400+30:1800+30"]

1. e4 e6 {[%emt 0:00:00]} 2. d4 {[%emt 0:00:00]} d5 {[%emt 0:00:03]} 3. exd5 {[%emt 0:00:00]} exd5 {[%emt 0:00:08]} 4. Bd3 {[%emt 0:00:08]} Nc6 {[%emt 0:00:43]} 5. Nf3 {[%emt 0:00:20]} Bd6 {[%emt 0:00:57]} 6. O-O {[%emt 0:00:21]} Nge7 {[%emt 0:01:02]} 7. Re1 {[%emt 0:00:49]} Bg4 {[%emt 0:03:25]} 8. c3 {[%emt 0:00:19]} Qd7 {[%emt 0:00:56]} 9. b4 {[%emt 0:01:07]} O-O {[%emt 0:05:17]} 10. h3 {[%emt 0:01:11]} Bf5 {[%emt 0:02:18]} 11. b5 {[%emt 0:03:48]} Na5 {[%emt 0:03:40]} 12. Ne5 {[%emt 0:09:00]} Bxe5 {[%emt 0:01:33]} 13. Rxe5 {[%emt 0:03:04]} Bxd3 {[%emt 0:01:13]} 14. Qxd3 {[%emt 0:00:09]} Nc4 {[%emt 0:00:53]} 15. Re1 {[%emt 0:02:21]} Ng6 {[%emt 0:05:24]} 16. Na3 {[%emt 0:06:44]} Rfe8 {[%emt 0:07:34]} 17. Rxe8+ Rxe8 {[%emt 0:00:18]} 18. Qf1 {[%emt 0:20:24]} Nd6 {[%emt 0:14:01]} 19. Be3 {[%emt 0:02:53]} f5 {[%emt 0:05:22]} 20. Qd3 {[%emt 0:07:53]} f4 {[%emt 0:04:50]} 21. Bd2 {[%emt 0:00:26]} Ne4 {[%emt 0:00:34]} 22. Re1 {[%emt 0:05:04]} f3 {[%emt 0:01:39]} 23. c4 {[%emt 0:05:55]} fxg2 {[%emt 0:03:28]} 24. cxd5 {[%emt 0:02:40]} Qf5 {[%emt 0:09:54]} 25. Kxg2 {[%emt 0:05:06]} Qxf2+ {[%emt 0:00:13]} 26. Kh1 {[%emt 0:01:15]} Ng3+ {[%emt 0:02:41]} 27. Qxg3 {[%emt 0:00:09]} Qxg3 {[%emt 0:00:05]} 28. Rxe8+ {[%emt 0:00:09]} Kf7 {[%emt 0:00:07]} 29. Re3 {[%emt 0:00:16]} Qf2 {[%emt 0:00:20]} 30. Nc4 {[%emt 0:01:13]} Nh4 {[%emt 0:00:51]} 31. Ne5+ {[%emt 0:00:37]} Kg8 {[%emt 0:00:12]} 0-1

[Event "24th European Women Club Cup 2019"]
[Site "Ulcinj"]
[Date "2019.11.16"]
[Round "7.24"]
[White "Rodshtein, Tereza"]
[Black "Radosevic, Nevena"]
[Result "1-0"]
[ECO "B44"]
[WhiteElo "2195"]
[BlackElo "1706"]
[Annotator "NA"]
[PlyCount "53"]
[EventDate "2019.11.10"]
[EventType "team-tourn"]
[EventCountry "MNE"]
[SourceTitle "playchess.com"]
[Source "ChessBase"]
[SourceQuality "1"]
[WhiteTeam "Novy Bor"]
[BlackTeam "MNE Woman Chess"]
[TimeControl "40/5400+30:1800+30"]

1. e4 {[%emt 0:00:00]} c5 {[%emt 0:00:00]} 2. Nf3 {[%emt 0:00:00]} Nc6 {[%emt 0:00:11]} 3. d4 {[%emt 0:00:00]} cxd4 {[%emt 0:00:08]} 4. Nxd4 {[%emt 0:00:15]} e6 {[%emt 0:00:30]} 5. Nb5 {[%emt 0:00:30]} d6 {[%emt 0:05:07]} 6. c4 {[%emt 0:00:15]} Nf6 {[%emt 0:03:34]} 7. N1c3 {[%emt 0:09:00]} Be7 {[%emt 0:00:30]} 8. Bf4 {[%emt 0:08:35]} e5 {[%emt 0:18:12]} 9. Bg5 {[%emt 0:00:30]} a6 {[%emt 0:07:21]} 10. Bxf6 {[%emt 0:00:41]} gxf6 {[%emt 0:00:13]} 11. Na3 {[%emt 0:00:06]} Be6 {[%emt 0:13:09]} 12. Nc2 {[%emt 0:08:16]} Qc7 {[%emt 0:02:56]} 13. Bd3 {[%emt 0:00:30]} Nd4 {[%emt 0:00:30]} 14. Ne3 {[%emt 0:00:30]} Rb8 {[%emt 0:10:18]} 15. Rc1 {[%emt 0:04:45]} Qa5 {[%emt 0:05:39]} 16. O-O {[%emt 0:02:21]} b5 {[%emt 0:03:01]} 17. cxb5 {[%emt 0:00:30]} axb5 {[%emt 0:00:13]} 18. Qh5 {[%emt 0:03:09]} Rg8 {[%emt 0:08:12]} 19. Ncd5 {[%emt 0:01:52]} Rg5 {[%emt 0:11:31]} 20. Qxh7 {[%emt 0:03:42]} Kd7 {[%emt 0:02:11]} 21. Rc7+ {[%emt 0:06:31]} Qxc7 {[%emt 0:00:44]} 22. Nxc7 {[%emt 0:00:02]} Kxc7 {[%emt 0:00:05]} 23. Nd5+ {[%emt 0:09:03]} Kd7 {[%emt 0:00:37]} 24. f4 {[%emt 0:06:38]} Rg4 {[%emt 0:03:09]} 25. fxe5 {[%emt 0:06:17]} fxe5 {[%emt 0:03:55]} 26. Rxf7 {[%emt 0:00:08]} Bxf7 {[%emt 0:00:30]} 27. Qxf7 {[%emt 0:00:30]} 1-0